Cogmind - Beta 11.1 @@@ ROGUE MODE // 2022.05.13 @ 16:25:57 Player: Olga Result: Self-destructed Performance ------------- Evolutions (1) 500 Regions Visited (3) 600 Robots Destroyed (5) 25 Value Destroyed (76) 76 Prototype IDs (0) 0 Alien Tech Used (0) 0 Bonus (200) 200 TOTAL SCORE: 1401 Bonus ------- Pacifist 200 Cogmind --------- Core Integrity 26/400 Matter 62/300 Energy 100/100 System Corruption 13% Temperature Cool (0) Movement Core (50) Location -9/Storage Parts ------- > --- POWER (1) -------- (None) > --- PROPULSION (4) --- (None) > --- UTILITY (2) ------ (None) > --- WEAPON (2) ------- (None) > --- INVENTORY (5) ---- Light Assault Rifle Datajack Datajack Peak State ------------ > --- POWER ------------ (None) > --- PROPULSION ------- VTOL Module VTOL Module VTOL Module > --- UTILITY ---------- Small Storage Unit Hardened Light Armor Plating > --- WEAPON ----------- Assault Rifle Light Assault Rifle > --- INVENTORY -------- Structural Scanner Hardened Light Armor Plating Mini Grenade Launcher Mini Grenade Launcher Datajack Datajack [Rating: 11] Favorites ----------- Power None Propulsion VTOL Module Flight Unit VTOL Module Utility Small Storage Unit Device Structural Scanner Storage Small Storage Unit Protection Hardened Light Armor Plating Weapon Assault Rifle Ballistic Gun Assault Rifle Launcher Mini Grenade Launcher Build | -11 -10 -9 -9 ------- Run | Scr Mat Mat Sto Slots Evolved 2 | . . 2 . Power . | . . . . Propulsion 2 | . . 2 . Utility . | . . . . Weapon . | . . . . Parts Attached 14 | 2 4 6 2 Power . | . . . . Engine . | . . . . Core . | . . . . Reactor . | . . . . Propulsion 5 | . 2 3 . Treads . | . . . . Leg . | . . . . Wheel . | . . . . Hover . | . . . . Flight 5 | . 2 3 . Utility 4 | . 2 2 . Device 1 | . . 1 . Storage 1 | . 1 . . Processor . | . . . . Hackware . | . . . . Protection 2 | . 1 1 . Artifact . | . . . . Weapon 5 | 2 . 1 2 Energy Gun . | . . . . Energy Cannon . | . . . . Ballistic Gun 2 | 2 . . . Ballistic Cannon . | . . . . Launcher 3 | . . 1 2 Special Weapon . | . . . . Impact Weapon . | . . . . Slashing Weapon . | . . . . Piercing Weapon . | . . . . Special Melee Weapon . | . . . . Unidentified Prototypes . | . . . . Corrupted Parts 2 | . . 2 . System Corruption 11 | . . 11 . Parts Lost 8 | . . 5 3 Power . | . . . . Propulsion 5 | . . 4 1 Utility . | . . . . Weapon 3 | . . 1 2 Highest Loss Streak 5 | . . 5 3 To Critical Strikes . | . . . . Average Slot Usage (%) 47 | . 71 66 15 Flight 18 | . 28 27 6 Device 1 | . . 8 . Storage 6 | . 11 11 . Ballistic Gun 13 | . 28 13 . Launcher 5 | . . 5 9 Naked Turns 10 | . . . 10 Heaviest Build 9 | 3 8 9 1 Greatest Support 12 | 3 8 12 4 Greatest Overweight (x) 1 | . . 1 . Average Overweight (x) . | . . . . Largest Inventory Capacity 8 | 5 8 8 8 Average Capacity 6 | 5 7 8 5 Most Carried 8 | 4 8 7 6 Average Carried 5 | 1 6 6 4 Final Capacity 8 | 5 8 8 5 Final Carried 8 | 2 8 7 3 Class Distribution -------------------- 100% | Mutant Dominant Class ---------------- Mutant | -9/Storage Resources | -11 -10 -9 -9 ----------- Run | Scr Mat Mat Sto Matter Collected 200 | 200 . . . Remotely . | . . . . Salvage Created 17 | . . 12 5 Parts 10 | . . 8 2 Haulers Intercepted . | . . . . Recyclers Shooed . | . . . . Parts Field Recycled . | . . . . Retrieved Matter . | . . . . Parts Self-Destructed . | . . . . Prevented . | . . . . Kills | -11 -10 -9 -9 ------- Run | Scr Mat Mat Sto Combat Hostiles Destroyed 4 | . . 4 . AOE 4 | . . 4 . Classes Destroyed 2 | . . 1 1 Watcher 1 | . . . 1 Swarmer 4 | . . 4 . Best Kill Streak 4 | . . 4 1 Combat Bots Only 4 | . . 4 . Max Kills in Single Turn 2 | . . 2 1 Gunslinging . | . . . . Exploded 2 | . . 2 . Melee . | . . . . Uniques/NPCs Destroyed . | . . . . Combat | -11 -10 -9 -9 -------- Run | Scr Mat Mat Sto Damage Taken 731 | . . 303 428 Core 374 | . . 47 327 Absorbed by Shields 13 | . . . 13 Core Remaining (%) 100 | 100 100 . . Volleys Fired 12 | . . 3 9 Largest 2 | . . 2 1 Hottest 50 | . . 50 30 Shots Fired 15 | . . 6 9 Gun 3 | . . 3 . Cannon . | . . . . Launcher 12 | . . 3 9 Special . | . . . . Kinetic 3 | . . 3 . Thermal . | . . . . Explosive 12 | . . 3 9 Electromagnetic . | . . . . Robot Hit Streak 2 | . . 2 . Robot Miss Streak 1 | . . 1 . Penetration Max . | . . . . Secondary Targets . | . . . . Shots Hit Robots 2 | . . 2 . Core Hits 10 | . . 9 1 Critical Kills . | . . . . Critical Parts Destroyed . | . . . . Critical Strikes . | . . . . Melee Attacks . | . . . . Impact . | . . . . Slashing . | . . . . Piercing . | . . . . Sneak Attacks . | . . . . Combat Hostiles . | . . . . Follow-up Attacks . | . . . . Damage Inflicted 291 | . . 264 27 Guns 25 | . . 25 . Cannons . | . . . . Explosions 266 | . . 239 27 Melee . | . . . . Ramming . | . . . . Kinetic 25 | . . 25 . Thermal . | . . . . Explosive 234 | . . 207 27 Electromagnetic 32 | . . 32 . Impact . | . . . . Slashing . | . . . . Piercing . | . . . . Highest Corruption 13 | . . 11 13 Average Corruption 10 | . . 10 11 Corruption Purged . | . . . . Corruption Blocked . | . . . . Effects 3 | . . 1 2 Message Errors 1 | . . . 1 Matter Fused 1 | . . . 1 Energy Discharges 1 | . . 1 . Overload Shots . | . . . . Overflow Damage 24 | . . 13 11 Projectiles . | . . . . Explosions 24 | . . 13 11 Melee . | . . . . Knockbacks . | . . . . Impact . | . . . . Kinetic . | . . . . Secondary . | . . . . Self-Inflicted Damage 171 | . . 60 111 Shots 5 | . . 2 3 Rammed . | . . . . Targets Rammed . | . . . . Kicked . | . . . . Crushed . | . . . . Highest Temperature 17 | . . 17 14 Average Temperature 7 | . . 7 8 Received Heat Transfer 249 | . . 135 114 Siege Activations . | . . . . Robots Corrupted . | . . . . Combat Hostiles . | . . . . Parts Fried . | . . . . Impact Corruptions . | . . . . Robots Melted . | . . . . Combat Hostiles . | . . . . Parts Melted . | . . . . Heat Transferred . | . . . . Parts Sabotaged . | . . . . Parts Stolen . | . . . . Parts Stripped . | . . . . Power Chain Reactions . | . . . . Missiles Intercepted . | . . . . Alert | -11 -10 -9 -9 ------- Run | Scr Mat Mat Sto Peak Influence 215 | . . 215 207 Initial 86 | . . . 86 Average 85 | . . 106 157 Maximum Alert Level 1 | . . 1 1 Low Security (%) 83 | 100 100 72 73 Level 1 16 | . . 27 26 Level 2 . | . . . . Level 3 . | . . . . Level 4 . | . . . . Level 5 . | . . . . High Security . | . . . . Max Security . | . . . . Squads Dispatched . | . . . . Investigation . | . . . . Extermination . | . . . . Reinforcement . | . . . . Assault . | . . . . Garrison . | . . . . Intercept . | . . . . Searches Triggered . | . . . . Construction Impeded . | . . . . Haulers Reinforced . | . . . . Active Scanning Responses . | . . . . Cargo Convoy Interrupts . | . . . . Stealth | -11 -10 -9 -9 --------- Run | Scr Mat Mat Sto Distress Signals 3 | . . 2 1 Communications Jammed . | . . . . Distress Signals . | . . . . Times Spotted 17 | . . 12 5 Peak Tracking Total 11 | . . 11 7 Tactical Retreats 1 | . . . 1 Traps | -11 -10 -9 -9 ------- Run | Scr Mat Mat Sto Traps Triggered 1 | . . . 1 Indirectly . | . . . . Trap Hack Attempts . | . . . . Triggered . | . . . . Disarmed . | . . . . Reprogrammed . | . . . . Reused . | . . . . Traps Extracted . | . . . . Installed . | . . . . Triggered . | . . . . Machines | -11 -10 -9 -9 ---------- Run | Scr Mat Mat Sto Machines Disabled 2 | . . 2 . Max in Single Turn 1 | . . 1 . Machines Sabotaged . | . . . . Garrisons Compromised . | . . . . Overloaded Fab Kills . | . . . . Hacking | -11 -10 -9 -9 --------- Run | Scr Mat Mat Sto Machines Accessed 1 | . . . 1 Terminals 1 | . . . 1 Fabricators . | . . . . Repair Stations . | . . . . Recycling Units . | . . . . Scanalyzers . | . . . . Garrison Access . | . . . . Total Hacks 1 | . . . 1 Successful 1 | . . . 1 Failed . | . . . . Catastrophic . | . . . . Database Lockouts . | . . . . Manual . | . . . . Terminals 1 | . . . 1 Fabricators . | . . . . Repair Stations . | . . . . Recycling Units . | . . . . Scanalyzers . | . . . . Garrison Access . | . . . . Terminal Hacks 1 | . . . 1 Level Access Points 1 | . . . 1 Fabricator Hacks . | . . . . Repair Station Hacks . | . . . . Recycling Unit Hacks . | . . . . Scanalyzer . | . . . . Garrison Access Hacks . | . . . . Unauthorized Hacks . | . . . . Terminals . | . . . . Fabricators . | . . . . Repair Stations . | . . . . Recycling Units . | . . . . Scanalyzers . | . . . . Garrison Access . | . . . . Data Cores Recovered . | . . . . Used . | . . . . Hacking Detections 1 | . . . 1 Full Trace Events . | . . . . Feedback Events . | . . . . Feedback Blocked . | . . . . Robot Schematics Acquired . | . . . . Robots Built . | . . . . Authchips . | . . . . Time . | . . . . Total Robot Build Rating . | . . . . Part Schematics Acquired . | . . . . Parts Built . | . . . . Authchips . | . . . . Time . | . . . . Total Part Build Rating . | . . . . Parts Repaired . | . . . . Time . | . . . . Parts Recycled . | . . . . Recycled Matter . | . . . . Retrieved Matter . | . . . . Retrieved Components . | . . . . Parts Scanalyzed . | . . . . Part Schematics Acquired . | . . . . Parts Damaged . | . . . . Bothacking | -11 -10 -9 -9 ------------ Run | Scr Mat Mat Sto Used RIF Installer . | . . . . Robots Hacked . | . . . . Non-combat . | . . . . Combat . | . . . . Robot Hacks Applied . | . . . . Relay Couplers Released . | . . . . Fabnet Peak Effective % . | . . . . Robots Rewired . | . . . . Allies Hacked . | . . . . Hacks Repelled . | . . . . Allies | -11 -10 -9 -9 -------- Run | Scr Mat Mat Sto Total Allies . | . . . . Largest Group . | . . . . Highest-Rated Group . | . . . . Highest-Rated Ally . | . . . . Total Orders . | . . . . Ally Attacks . | . . . . Total Damage . | . . . . Kills . | . . . . Allies Corrupted . | . . . . Allies Melted . | . . . . Intel | -11 -10 -9 -9 ------- Run | Scr Mat Mat Sto Robot Analysis Total . | . . . . Derelict Logs Recovered . | . . . . Drone Launches . | . . . . Drone Recoveries . | . . . . Exploration | -11 -10 -9 -9 ------------- Run | Scr Mat Mat Sto Turns Passed 185 | 9 61 47 68 Spaces Moved 308 | 5 124 76 103 Core 37 | 5 9 . 23 Treads . | . . . . Legs . | . . . . Wheels . | . . . . Hover . | . . . . Flight 271 | . 115 76 80 Fastest Speed 29 | 50 32 29 40 Average Speed 36 | 50 33 33 42 Slowest Speed 120 | 50 50 120 50 Overloaded Moves . | . . . . Propulsion Burnouts . | . . . . Robots Hopped 2 | . . 2 . Cave-ins Triggered 1 | . . . 1 Exploration Rate (%) 17 | 2 25 14 27 Regions Visited 3 Branch Regions 1 Pre-discovered Areas . | . . . . Known Exits Taken . | . . . . Unknown Exits Taken 3 | 1 1 1 . Scrap Searched . | . . . . Spaces Dug 10 | . . . 10 Terrain Destroyed 133 | . . 29 104 Melee . | . . . . Projectile . | . . . . AOE 133 | . . 29 104 Terrain Rammed . | . . . . Walls Destroyed . | . . . . Machines Disabled . | . . . . Actions | -11 -10 -9 -9 --------- Run | Scr Mat Mat Sto Total 363 | 12 143 88 120 Wait 5 | . . 5 . Move 300 | 4 123 71 102 Hop 2 | . . 2 . Pick Up 13 | 2 11 . . Fast Attach 6 | 1 3 2 . Attach 5 | 1 . 2 2 Detach 2 | . . 1 1 Swap 3 | . 1 2 . Drop 13 | 4 5 . 4 Fire 12 | . . 3 9 Melee . | . . . . Ram . | . . . . Kick . | . . . . Crush . | . . . . Escape Stasis 2 | . . . 2 Rewire . | . . . . Trap . | . . . . Miscellaneous . | . . . . Route ------- -11/Scrapyard -10/Materials -9/Materials -9/Storage (discovered 1 exit: Mat) History --------- Turn | Location | Event 1 | -11/Scrapyard | Released all parts (6) 5 | -11/Scrapyard | Discovered new exit (range 3) 10 | -11/Scrapyard | Entered Materials 68 | -10/Materials | Discovered new exit (range 9) 71 | -10/Materials | Entered another Materials area 71 | -9/Materials | Evolved 2 slots: Propulsion x2 107 | -9/Materials | System corruption reached 10% 115 | -9/Materials | Discovered new exit (range 10) 118 | -9/Materials | Entered Storage 120 | -9/Storage | Identified exit to Materials 149 | -9/Storage | Lost 5 parts (4n1w) 165 | -9/Storage | Core integrity fell below 50% 180 | -9/Storage | Core integrity fell below 20% 184 | -9/Storage | Crushed by falling debris 186 | -9/Storage | Self-destructed Last Messages --------------- 00133_ Field strength at 95. 00134_ Field strength at 90. 00135_ 9R2RMC6C65INF V4L%58TMVJA9935B 00135_ W-16 Scout destroyed. 00135_ K-01 Serf cleans the Component Storage. 00140_ U-05 Engineer builds a Door. 00144_ K-01 Serf collects debris. 00153_ Dropped Hrd. Light Armor Plating. 00156_ System corrupted: Matter fused (-9). 00156_ Flight Unit destroyed. 00159_ Critical hit (Burn: +37). 00164_ Mni. Grenade Launcher destroyed. 00164_ Destroyed Mni. Grenade Launcher. 00164_ Critical hit (Burn: +37). 00179_ The unstable cave ceiling collapses. 00184_ Crushed by falling debris. 00184_ Mni. Grenade Launcher destroyed. 00184_ System corrupted by crushing effect (+2). 00185_ U-05 Engineer lays Concrete. 00186_ The unstable cave ceiling collapses. Map ----- +----------------------------------------------------+ | | | | | | | | | | | | | | | | | | | | | | | | | | | | | | | | | | | ?????????????????????????????????????????????? | | ?????????????????????????????????????????????? | | ??????????????????#########??????????????????? | | ??????????????????# #??????????????????? | | ??????????????????# ##?????????????????? | | ??????????????????# # #######???????????? | | ??????????????????# # #???????????? | | ??????????????????# # #?##????????? | | ????